bitfinex/quotes_SOLUSD_20230404
["timestamp","ask_amount","ask_price","bid_price","bid_amount"]
[1680623767555,20.0,20.877,20.858,19.176]
[1680623767739,20.0,20.877,20.86,27.25]
[1680623767939,20.0,20.877,20.861,76.173]
[1680623768160,20.0,20.877,20.862,109.5474]
[1680623768342,20.0,20.877,20.863,37.0]
[1680623768538,20.0,20.877,20.864,20.0]
[1680623768738,20.0,20.877,20.865,17.0]
[1680623771645,20.0,20.877,20.866,20.0]
[1680623771846,20.0,20.877,20.867,17.0]
[1680623775272,5.63703697,20.877,20.867,90.71950449]
[1680623775471,5.63703697,20.877,20.87,27.25]
[1680623775659,38.279,20.899,20.872,20.0]
[1680623775849,39.14,20.898,20.873,37.0]
[1680623776050,20.0,20.897,20.874,20.0]
[1680623776261,20.0,20.897,20.875,17.0]
[1680623776769,20.0,20.896,20.876,20.0]
[1680623776981,20.0,20.896,20.877,17.0]
[1680623777479,17.0,20.895,20.877,17.0]
[1680623777659,20.0,20.894,20.877,17.0]
[1680623777860,17.0,20.893,20.877,17.0]
[1680623778278,17.0,20.895,20.877,17.0]
[1680623778473,20.0,20.894,20.877,17.0]
[1680623778777,17.0,20.893,20.877,17.0]
[1680623785987,17.0,20.893,20.877,17.0]
[1680623786561,17.0,20.893,20.875,17.0]
[1680623786761,17.0,20.893,20.873,20.0]
[1680623786961,20.0,20.892,20.873,20.0]
[1680623787162,17.0,20.891,20.873,20.0]
[1680623787865,17.0,20.893,20.874,20.0]
[1680623788981,20.0,20.892,20.874,20.0]
[1680623789280,17.0,20.891,20.874,20.0]
[1680623790161,17.0,20.891,20.873,20.0]
[1680623790456,17.0,20.891,20.874,17.0]
[1680623790965,17.0,20.893,20.874,17.0]
[1680623791464,17.0,20.893,20.875,20.0]
[1680623792384,17.0,20.893,20.874,37.0]
[1680623794387,17.0,20.893,20.874,20.0]
[1680623794585,20.0,20.892,20.873,20.0]
[1680623794768,17.0,20.891,20.874,17.0]
[1680623796290,17.0,20.893,20.874,17.0]
[1680623796588,17.0,20.893,20.875,20.0]
[1680623797584,17.0,20.893,20.874,37.0]
[1680623798995,17.0,20.893,20.874,17.0]
[1680623800398,20.0,20.892,20.874,17.0]
[1680623800585,17.0,20.891,20.874,17.0]
[1680623802498,20.0,20.89,20.873,20.0]
[1680623802702,17.0,20.889,20.872,20.0]
[1680623802883,17.0,20.889,20.873,17.0]
[1680623803696,17.0,20.889,20.874,20.0]
[1680623803908,132.8193,20.889,20.874,20.0]
[1680623807110,132.8193,20.889,20.872,20.0]
[1680623807476,20.0,20.888,20.872,20.0]
[1680623807682,17.0,20.887,20.872,20.0]
[1680623811000,115.8193,20.889,20.872,20.0]
[1680623811180,115.8193,20.889,20.873,17.0]
[1680623811384,115.8193,20.889,20.874,20.0]
[1680623812408,17.0,20.888,20.874,20.0]
[1680623813303,20.0,20.887,20.874,20.0]
[1680623813602,17.0,20.888,20.874,20.0]
[1680623816197,17.0,20.888,20.873,17.0]
[1680623816697,17.0,20.888,20.868,20.0]
[1680623817000,17.0,20.888,20.87,20.0]
[1680623817208,17.0,20.888,20.871,37.0]
[1680623820485,20.0,20.887,20.867,119.7219]
[1680623820819,54.28,20.88,20.856,105.2266]
[1680623821017,20.0,20.879,20.857,117.398]
[1680623821198,20.0,20.878,20.857,117.398]
[1680623821392,37.0,20.877,20.857,117.398]
[1680623821903,20.0,20.876,20.857,117.398]
[1680623822093,37.0,20.875,20.857,117.398]
[1680623823905,27.04,20.87,20.858,17.0]
[1680623824511,27.04,20.87,20.857,117.398]
[1680623833523,19.168,20.868,20.857,117.398]
[1680623833918,27.04,20.87,20.857,117.398]
[1680623834129,17.0,20.869,20.857,117.398]
[1680623834508,36.167,20.869,20.854,37.0]
[1680623834712,27.06,20.86,20.854,37.0]
[1680623840826,17.0,20.859,20.854,37.0]
[1680623842826,17.0,20.859,20.846,116.5574]
[1680623844024,20.0,20.858,20.846,116.5574]
[1680623844232,17.0,20.857,20.846,116.5574]
[1680623844522,411.78124437,20.872,20.847,20.0]
[1680623844728,27.2,20.88,20.848,17.0]
[1680623845029,54.45,20.88,20.851,19.183]
[1680623845332,138.7101,20.878,20.852,57.0]
[1680623845527,138.7101,20.878,20.852,197.95777565]
[1680623845832,138.7101,20.878,20.854,20.0]
[1680623846036,138.7101,20.878,20.855,17.0]
[1680623846037,20.0,20.877,20.855,17.0]
[1680623846218,17.0,20.876,20.855,157.95777565]
[1680623846415,20.0,20.875,20.856,27.15566001]
[1680623846735,17.0,20.874,20.857,24.15566001]
[1680623847037,17.0,20.874,20.857,134.47546001]
[1680623849209,17.0,20.874,20.857,110.3198]
[1680623849416,27.04,20.87,20.857,110.3198]
[1680623849639,17.0,20.869,20.857,110.3198]
[1680623855422,20.0,20.868,20.857,110.3198]
[1680623856348,17.0,20.869,20.857,110.3198]
[1680623861922,27.04,20.87,20.857,110.3198]
[1680623862236,20.0,20.875,20.857,110.3198]
[1680623862435,17.0,20.874,20.857,110.3198]
[1680623862734,17.0,20.874,20.858,20.0]
[1680623864946,17.0,20.874,20.857,110.3198]
[1680623865750,27.04,20.87,20.857,110.3198]
[1680623865959,17.0,20.869,20.857,110.3198]
[1680623867846,27.04,20.87,20.857,110.3198]
[1680623868144,118.7101,20.878,20.857,110.3198]
[1680623868348,118.7101,20.878,20.858,24.15566001]
[1680623868543,118.7101,20.878,20.859,20.0]
[1680623868844,118.7101,20.878,20.861,20.0]
[1680623869044,118.7101,20.878,20.862,37.0]
[1680623869348,118.7101,20.878,20.863,20.0]
[1680623871649,118.7101,20.878,20.862,20.0]
[1680623871855,17.0,20.877,20.861,20.0]
[1680623872238,17.0,20.877,20.86,20.0]
[1680623873654,17.0,20.877,20.861,20.0]
[1680623874553,118.7101,20.878,20.861,20.0]
[1680623874740,118.7101,20.878,20.862,17.0]
[1680623874940,118.7101,20.878,20.864,20.0]
[1680623875857,118.7101,20.878,20.863,20.0]
[1680623881846,118.7101,20.878,20.864,17.0]
[1680623886657,14.08150995,20.88,20.865,20.0]
[1680623886962,38.344975,20.884,20.866,17.0]
[1680623887166,17.0,20.883,20.866,17.0]
[1680623887758,20.0,20.882,20.866,17.0]
[1680623887955,17.0,20.883,20.866,17.0]
[1680623888767,52.94595374,20.884,20.866,17.0]
[1680623889968,38.344975,20.884,20.867,20.0]
[1680623890151,38.344975,20.884,20.872,19.163]
[1680623890354,38.344975,20.884,20.873,37.0]
[1680623890573,38.344975,20.884,20.874,20.0]
[1680623890763,27.25,20.89,20.875,17.0]
[1680623891559,27.25,20.89,20.873,20.0]
[1680623891856,17.0,20.888,20.87,20.0]
[1680623892057,17.0,20.888,20.871,20.0]
[1680623892261,17.0,20.888,20.872,20.0]
[1680623892965,17.0,20.888,20.873,17.0]
[1680623895879,17.0,20.888,20.872,20.0]
[1680623896167,17.0,20.888,20.873,17.0]
[1680623896375,27.25,20.89,20.873,17.0]
[1680623896560,17.0,20.888,20.873,17.0]
[1680623897059,17.0,20.888,20.872,20.0]
[1680623899875,17.0,20.888,20.871,20.0]
[1680623900278,24.15566001,20.888,20.868,20.0]
[1680623900573,20.0,20.887,20.868,20.0]
[1680623901079,17.0,20.886,20.868,20.0]
[1680623901963,17.0,20.886,20.868,40.0]
[1680623902369,17.0,20.886,20.869,37.0]
[1680623902566,17.0,20.888,20.87,20.0]
[1680623903268,17.0,20.888,20.871,20.0]
[1680623908881,17.0,20.888,20.87,20.0]
[1680623909076,17.0,20.888,20.871,17.0]
[1680623909277,17.0,20.888,20.872,20.0]
[1680623910481,17.0,20.888,20.87,20.0]
[1680623911183,17.0,20.888,20.871,20.0]
[1680623911385,17.0,20.888,20.872,20.0]
[1680623912176,17.0,20.888,20.873,20.0]
[1680623912786,27.2,20.89,20.873,20.0]
[1680623912966,20.0,20.893,20.874,43.31666001]
[1680623913171,20.0,20.893,20.875,20.0]
[1680623913386,20.0,20.893,20.876,17.0]
[1680623914074,20.0,20.893,20.877,20.0]
[1680623914275,20.0,20.893,20.878,17.0]
[1680623915086,20.0,20.893,20.879,20.0]
[1680623918690,7.15566001,20.898,20.879,20.0]
[1680623919490,20.0,20.894,20.88,17.0]
[1680623922589,20.0,20.894,20.878,17.0]
[1680623923090,20.0,20.894,20.879,20.0]
[1680623923290,20.0,20.894,20.88,17.0]
[1680623925591,20.0,20.894,20.878,17.0]
[1680623926786,20.0,20.894,20.877,20.0]
[1680623926991,20.0,20.894,20.878,17.0]
[1680623929095,20.0,20.894,20.879,20.0]
[1680623929283,20.0,20.894,20.88,17.0]
[1680623931295,34.05091896,20.896,20.881,20.0]
[1680623931593,20.0,20.896,20.882,17.0]
[1680623931998,20.0,20.896,20.883,20.0]
[1680623932197,20.0,20.896,20.881,20.0]
[1680623932784,20.0,20.896,20.88,20.0]
[1680623933186,17.0,20.895,20.88,20.0]
[1680623942493,17.0,20.895,20.879,20.0]
[1680623942799,17.0,20.895,20.879,40.0]
[1680623943396,17.0,20.895,20.878,112.8248]
[1680623943600,20.0,20.894,20.878,112.8248]
[1680623943984,17.0,20.893,20.878,112.8248]
[1680623944197,20.0,20.894,20.879,20.0]
[1680623944406,20.0,20.894,20.878,112.8248]
[1680623945589,20.0,20.894,20.879,20.0]
[1680623945902,27.15566001,20.898,20.878,112.8248]
[1680623946105,17.0,20.897,20.878,112.8248]
[1680623946401,20.0,20.896,20.879,20.0]
[1680623946610,17.0,20.895,20.879,20.0]
[1680623946993,20.0,20.894,20.879,20.0]
[1680623947508,20.0,20.894,20.877,20.0]
[1680623947711,20.0,20.894,20.878,17.0]
[1680623953209,20.0,20.894,20.877,17.0]
[1680623954401,20.0,20.894,20.878,20.0]
[1680623955101,20.0,20.894,20.877,37.0]
[1680623955297,17.0,20.893,20.878,117.3941]
[1680623956711,20.0,20.894,20.878,117.3941]
[1680623956912,17.0,20.893,20.878,117.3941]
[1680623957097,20.0,20.893,20.878,117.3941]
[1680623957295,17.0,20.892,20.878,117.3941]
[1680623957898,20.0,20.893,20.879,20.0]
[1680623958101,17.0,20.892,20.879,20.0]
[1680623958300,17.0,20.892,20.878,117.3941]
[1680623958917,27.15,20.89,20.876,110.819]
[1680623959305,17.0,20.889,20.876,110.819]
[1680623961217,20.0,20.888,20.87,169.88304759]
[1680623961415,17.0,20.887,20.871,20.0]
[1680623962003,20.0,20.886,20.87,109.6433]
[1680623962216,20.0,20.885,20.87,109.6433]
[1680623962513,37.0,20.884,20.867,108.2077]
[1680623964618,20.0,20.884,20.867,108.2077]
[1680623964918,20.0,20.886,20.868,20.0]
[1680623965116,20.0,20.886,20.869,17.0]
[1680623967514,20.0,20.886,20.867,108.2077]
[1680623967713,20.0,20.886,20.868,17.0]
[1680623967714,17.0,20.885,20.868,17.0]
[1680623967912,20.0,20.884,20.868,37.0]
[1680623969307,17.0,20.883,20.867,108.2077]
[1680623972618,20.0,20.884,20.868,20.0]
[1680623972921,20.0,20.886,20.868,20.0]
[1680623973814,17.0,20.885,20.868,20.0]
[1680623974019,20.0,20.884,20.868,20.0]
[1680623974819,20.0,20.884,20.867,108.2077]
[1680623975118,20.0,20.884,20.868,17.0]
[1680623976116,17.0,20.883,20.867,108.2077]
[1680623977410,20.0,20.882,20.867,108.2077]
[1680623977611,27.04,20.88,20.867,108.2077]
[1680623977808,17.0,20.879,20.867,108.2077]
[1680623978404,20.0,20.878,20.867,108.2077]
[1680623978607,17.0,20.877,20.867,108.2077]
[1680623979744,17.0,20.879,20.867,108.2077]
[1680623980625,20.0,20.878,20.867,108.2077]
[1680623980830,17.0,20.877,20.867,108.2077]
[1680623985136,17.0,20.877,20.864,119.1465]
[1680623986622,17.0,20.877,20.857,74.93913438]
[1680623986814,20.0,20.875,20.858,108.2306]
[1680623987014,27.03,20.87,20.858,108.2306]
[1680623987441,17.0,20.869,20.858,108.2306]
[1680623990221,27.03,20.87,20.858,108.2306]
[1680623990532,17.0,20.869,20.858,108.2306]
[1680623991139,17.0,20.869,20.852,60.23974759]
[1680623991328,20.0,20.868,20.849,117.3645]
[1680623991719,17.0,20.867,20.849,117.3645]
[1680623992836,17.0,20.866,20.85,20.0]
[1680623993039,20.0,20.866,20.85,20.0]
[1680623993243,17.0,20.865,20.853,20.0]
[1680623994225,20.0,20.864,20.853,20.0]
[1680623994541,27.15,20.86,20.853,20.0]
[1680623995428,17.0,20.863,20.853,20.0]
[1680623995638,17.0,20.865,20.853,20.0]
[1680623995940,17.0,20.866,20.853,20.0]
[1680623996144,20.0,20.865,20.853,20.0]
[1680623996438,17.0,20.864,20.853,20.0]
[1680623996832,17.0,20.866,20.853,20.0]
[1680623997241,20.0,20.865,20.853,20.0]
[1680623997454,17.0,20.864,20.853,20.0]
[1680623998238,17.0,20.866,20.853,20.0]
[1680623998543,20.0,20.865,20.853,20.0]
[1680623998744,17.0,20.864,20.853,20.0]
[1680623999625,54.45,20.87,20.853,20.0]
[1680624002639,54.45,20.87,20.853,19.5]
[1680624002841,27.2,20.87,20.853,19.5]
[1680624007551,27.15566001,20.876,20.853,19.5]
[1680624008244,27.15566001,20.876,20.854,20.0]
[1680624008550,46.31666001,20.876,20.854,20.0]
[1680624008754,27.15566001,20.876,20.851,20.0]
[1680624009053,20.0,20.875,20.853,20.0]
[1680624009241,20.0,20.874,20.853,20.0]
[1680624010155,20.0,20.873,20.853,20.0]
[1680624010554,20.0,20.874,20.853,20.0]
[1680624011352,7.15566001,20.876,20.853,20.0]
[1680624011353,20.0,20.875,20.853,20.0]
[1680624011855,20.0,20.876,20.853,20.0]
[1680624012545,20.0,20.876,20.855,19.179]
[1680624013139,20.0,20.876,20.857,20.0]
[1680624018869,20.0,20.876,20.856,230.7376]
[1680624019070,20.0,20.875,20.856,230.7376]
[1680624021681,20.0,20.874,20.856,230.7376]
[1680624028896,20.0,20.874,20.856,230.7376]
[1680624029186,54.23,20.87,20.856,230.7376]
[1680624032075,20.0,20.869,20.856,230.7376]
[1680624033989,27.2,20.87,20.856,230.7376]
[1680624034192,27.2,20.87,20.84,453.11]
[1680624034193,26.32266001,20.869,20.837,24.83202803]
[1680624034370,54.28,20.86,20.845,119.0097]
[1680624034572,20.0,20.859,20.845,119.0097]
[1680624039776,54.28,20.86,20.845,119.0097]
[1680624039973,20.0,20.859,20.845,119.0097]
[1680624040496,20.0,20.859,20.841,119.707]
[1680624040980,20.0,20.858,20.841,119.707]
[1680624041185,20.0,20.858,20.835,20.0]
[1680624041186,27.15,20.85,20.835,20.0]
[1680624041500,54.5,20.86,20.837,19.196]
[1680624041700,54.5,20.86,20.838,20.0]
[1680624041885,17.0,20.859,20.838,20.0]
[1680624042485,27.15,20.85,20.839,20.0]
[1680624042686,27.15,20.85,20.838,20.0]
[1680624042898,27.15,20.85,20.839,17.0]
[1680624043100,27.15,20.85,20.84,20.0]
[1680624043785,27.15,20.85,20.838,20.0]
[1680624043984,27.15,20.85,20.837,20.0]
[1680624044192,27.15,20.85,20.836,20.0]
[1680624044976,27.15,20.85,20.835,20.0]
[1680624046903,17.0,20.849,20.835,20.0]
[1680624047598,27.15,20.85,20.835,20.0]
[1680624049807,27.15,20.85,20.836,20.0]
[1680624050584,27.15,20.85,20.835,20.0]
[1680624051409,27.15,20.85,20.836,17.0]
[1680624051703,27.15,20.85,20.837,20.0]
[1680624055006,17.0,20.849,20.835,20.0]
[1680624055703,17.0,20.849,20.834,260.54]
[1680624055903,17.0,20.849,20.834,241.342]
[1680624056093,17.0,20.849,20.834,260.54]
[1680624056289,17.0,20.849,20.834,241.342]
[1680624056999,20.0,20.848,20.834,241.342]
[1680624057303,17.0,20.847,20.834,136.5177]
[1680624057505,27.03,20.84,20.834,136.5177]
[1680624057886,27.03,20.84,20.834,20.0]
[1680624058303,17.0,20.839,20.834,20.0]
[1680624059300,27.03,20.84,20.834,20.0]
[1680624064709,20.0,20.839,20.834,20.0]
[1680624065313,17.0,20.838,20.834,20.0]
[1680624067507,17.0,20.838,20.821,113.7834]
[1680624068412,20.0,20.837,20.821,113.7834]
[1680624068706,17.0,20.836,20.821,113.7834]
[1680624069501,20.0,20.835,20.821,113.7834]
[1680624069801,17.0,20.834,20.821,113.7834]
[1680624070217,27.03,20.83,20.821,113.7834]
[1680624072412,27.03,20.83,20.817,14.46840476]
[1680624072603,27.03,20.83,20.815,47.86373299]
[1680624073510,27.03,20.83,20.816,20.0]
[1680624074009,27.03,20.83,20.815,47.86373299]
[1680624074010,20.0,20.829,20.815,47.86373299]
[1680624074212,17.0,20.828,20.811,108.8143]
[1680624075010,17.0,20.828,20.812,112.1923]
[1680624076205,54.28,20.83,20.812,112.1923]
[1680624077195,54.28,20.83,20.813,20.0]
[1680624077595,17.0,20.829,20.813,20.0]
[1680624078314,27.25,20.83,20.814,36.216]
[1680624079422,27.25,20.83,20.815,20.0]
[1680624079618,27.25,20.83,20.814,36.216]
[1680624080707,27.25,20.83,20.814,17.0]
[1680624080901,27.25,20.83,20.814,20.0]
[1680624082601,27.25,20.83,20.815,17.0]
[1680624083099,27.25,20.83,20.814,17.0]
[1680624084723,27.25,20.83,20.813,20.0]
[1680624085228,17.0,20.829,20.813,20.0]
[1680624087610,27.25,20.83,20.813,39.218]
[1680624087810,27.25,20.83,20.814,17.0]
[1680624088211,27.25,20.83,20.815,20.0]
[1680624088422,27.25,20.83,20.816,17.0]
[1680624090008,14.50371928,20.838,20.817,39.215]
[1680624090232,54.34,20.84,20.819,20.0]
[1680624090524,54.34,20.84,20.82,37.0]
[1680624091325,37.0,20.839,20.82,37.0]
[1680624091912,37.0,20.839,20.82,20.0]
[1680624094318,17.0,20.839,20.82,20.0]
[1680624094515,17.0,20.839,20.821,17.0]
[1680624095735,27.25,20.835,20.82,20.0]
[1680624096340,27.25,20.835,20.819,40.0]
[1680624096638,27.25,20.835,20.82,17.0]
[1680624096844,27.25,20.835,20.821,20.0]
[1680624099442,17.0,20.834,20.819,20.0]
[1680624099935,27.25,20.835,20.819,20.0]
[1680624100141,27.25,20.835,20.82,37.0]
[1680624100343,27.25,20.835,20.821,20.0]
[1680624103131,27.25,20.835,20.822,20.0]
[1680624103531,27.25,20.835,20.822,37.0]
[1680624103738,27.25,20.835,20.822,17.0]
[1680624105047,27.25,20.835,20.821,20.0]
[1680624105254,27.25,20.835,20.82,20.0]
[1680624105434,27.25,20.835,20.821,17.0]
[1680624107029,27.25,20.835,20.822,20.0]
[1680624107439,27.25,20.835,20.823,17.0]
[1680624107643,27.25,20.835,20.82,20.0]
[1680624107836,27.25,20.835,20.821,17.0]
[1680624108036,27.25,20.835,20.822,20.0]
[1680624108649,27.25,20.835,20.823,17.0]
[1680624109261,27.14,20.84,20.823,17.0]
[1680624110149,27.14,20.84,20.82,39.211]
[1680624110348,17.0,20.839,20.821,17.0]
[1680624110737,17.0,20.839,20.82,39.211]
[1680624111738,20.0,20.838,20.82,39.211]
[1680624111940,27.14,20.84,20.821,20.0]
[1680624112257,17.0,20.839,20.821,20.0]
[1680624112753,17.0,20.839,20.822,17.0]
[1680624113243,54.34,20.84,20.822,17.0]
[1680624114759,54.34,20.84,20.823,20.0]
[1680624114940,27.2,20.84,20.824,17.0]
[1680624115651,27.2,20.84,20.823,20.0]
[1680624115837,27.2,20.84,20.824,17.0]
[1680624120152,27.2,20.84,20.821,20.0]
[1680624120458,17.0,20.839,20.82,20.0]
[1680624120658,17.0,20.839,20.819,20.0]
[1680624120952,20.0,20.838,20.819,20.0]
[1680624121148,17.0,20.837,20.819,20.0]
[1680624121746,17.0,20.837,20.818,152.55030906]
[1680624121953,40.0,20.836,20.818,117.1707]
[1680624122147,27.04,20.83,20.818,117.1707]
[1680624123256,27.04,20.83,20.819,17.0]
[1680624125163,27.04,20.83,20.818,117.1707]
[1680624125347,27.04,20.83,20.819,17.0]
[1680624125759,27.04,20.83,20.818,117.1707]
[1680624129951,27.04,20.83,20.813,47.86373299]
[1680624130153,17.0,20.829,20.813,47.86373299]
[1680624130463,20.0,20.828,20.811,112.7045]
[1680624130653,17.0,20.827,20.811,112.7045]
[1680624131050,17.0,20.827,20.812,20.0]
[1680624132158,27.04,20.82,20.812,20.0]
[1680624133867,27.04,20.82,20.809,14.18278131]
[1680624134062,27.04,20.82,20.81,20.0]
[1680624137771,114.616,20.826,20.812,20.0]
[1680624140764,114.616,20.826,20.811,17.0]
[1680624141078,54.5,20.83,20.811,17.0]
[1680624141259,54.5,20.83,20.811,20.0]
[1680624141460,54.5,20.83,20.812,17.0]
[1680624142063,54.5,20.83,20.812,36.218]
[1680624142272,17.0,20.829,20.813,20.0]
[1680624142454,17.0,20.829,20.812,36.218]
[1680624142858,17.0,20.829,20.813,20.0]
[1680624143054,54.5,20.83,20.814,17.0]
[1680624143558,54.5,20.83,20.815,20.0]
[1680624144269,27.25,20.83,20.815,20.0]
[1680624144473,27.25,20.83,20.816,17.0]
[1680624144671,27.25,20.83,20.817,20.0]
[1680624144859,27.25,20.83,20.818,17.0]
[1680624145477,14.20200429,20.838,20.819,20.0]
[1680624145659,14.20200429,20.838,20.82,17.0]
[1680624145855,20.0,20.832,20.82,17.0]
[1680624146173,20.0,20.832,20.821,20.0]
[1680624146372,20.0,20.832,20.822,17.0]
[1680624147660,20.0,20.832,20.823,20.0]
[1680624147963,20.0,20.832,20.825,20.0]
[1680624148163,20.0,20.832,20.826,17.0]
[1680624149180,20.0,20.832,20.827,20.0]
[1680624149375,20.0,20.832,20.828,17.0]
[1680624155179,20.0,20.832,20.826,17.0]
[1680624155387,20.0,20.832,20.824,17.0]
[1680624158487,20.0,20.832,20.821,34.26616297]
[1680624158688,20.0,20.832,20.821,20.0]
[1680624158874,20.0,20.832,20.819,20.0]
[1680624162395,20.0,20.837,20.819,20.0]
[1680624162583,17.0,20.836,20.819,20.0]
[1680624164381,17.0,20.836,20.82,37.0]
[1680624164577,14.11585502,20.838,20.821,20.0]
[1680624164795,54.4,20.84,20.822,17.0]
[1680624165294,54.4,20.84,20.823,20.0]
[1680624165495,54.4,20.84,20.824,17.0]
[1680624170392,54.4,20.84,20.822,17.0]
[1680624170986,54.4,20.84,20.823,20.0]
[1680624171196,54.4,20.84,20.824,17.0]
[1680624172207,27.2,20.84,20.824,17.0]
[1680624174299,27.2,20.84,20.825,20.0]
[1680624174506,27.2,20.84,20.826,17.0]
[1680624176607,27.2,20.84,20.715,496.64056056]
[1680624176608,27.2,20.84,20.819,50.35146388]
[1680624176903,27.2,20.84,20.82,40.0]
[1680624178000,27.2,20.84,20.821,17.0]
[1680624178201,27.2,20.84,20.822,20.0]
[1680624178403,27.2,20.84,20.823,17.0]
[1680624182203,20.0,20.839,20.823,17.0]
[1680624182505,20.0,20.839,20.821,17.0]
[1680624182806,27.2,20.84,20.821,17.0]
[1680624183011,17.0,20.839,20.821,17.0]
[1680624183406,27.2,20.84,20.822,20.0]
[1680624183607,27.2,20.84,20.823,17.0]
[1680624187409,17.0,20.839,20.82,40.0]
[1680624187609,27.2,20.84,20.82,40.0]
[1680624188709,27.2,20.84,20.822,20.0]
[1680624188908,27.2,20.84,20.823,17.0]
[1680624190204,27.2,20.84,20.824,20.0]
[1680624190519,27.2,20.84,20.825,17.0]
[1680624193096,54.5,20.85,20.826,20.0]
[1680624193298,14.37132359,20.849,20.829,19.203]
[1680624193593,14.37132359,20.849,20.83,37.0]
[1680624193796,116.5694,20.855,20.834,19.198]
[1680624194017,116.5694,20.855,20.835,37.0]
[1680624194198,116.5694,20.855,20.837,19.195]
[1680624194396,116.5694,20.855,20.838,17.0]
[1680624194603,116.5694,20.855,20.84,19.193]
[1680624194813,116.5694,20.855,20.841,17.0]
[1680624195115,116.5694,20.855,20.842,20.0]
[1680624195309,116.5694,20.855,20.839,39.95326734]
[1680624195512,116.5694,20.855,20.84,20.0]
[1680624197595,116.5694,20.855,20.841,17.0]
[1680624198404,116.5694,20.855,20.841,13.46077108]
[1680624201918,116.5694,20.855,20.841,33.46077108]
[1680624202315,20.0,20.845,20.841,13.46077108]
[1680624206207,20.0,20.845,20.841,77.8844471]
[1680624206408,20.0,20.845,20.841,117.83771444]
[1680624206608,20.0,20.845,20.841,169.30670854]
[1680624207009,20.0,20.845,20.842,20.0]
[1680624207210,20.0,20.845,20.843,17.0]
[1680624207424,20.0,20.845,20.843,24.20120688]
[1680624207621,20.0,20.845,20.844,27.20120688]
[1680624207820,20.0,20.845,20.844,104.15447422]
[1680624208138,109.8056,20.856,20.845,20.0]